[Event "Early-Titled-Tuesday-Blitz-April-23-2024"]
[Site "Chess.com"]
[Date "2024.04.23"]
[Round "6"]
[White "mary-sanna"]
[Black "Likvidator228"]
[Result "0-1"]
[WhiteElo "2250"]
[BlackElo "2500"]
[TimeControl "180+1"]
[EndTime "9:07:58 PDT"]
[Termination "Likvidator228 won by checkmate"]

1. d4 {[%clk 0:03:00.6]} 1... f5 {[%clk 0:02:55]} 2. Nf3 {[%clk 0:02:58.1]} 2...
Nf6 {[%clk 0:02:55.2]} 3. c4 {[%clk 0:02:58.3]} 3... g6 {[%clk 0:02:55.5]} 4.
Nc3 {[%clk 0:02:58.4]} 4... Bg7 {[%clk 0:02:55.7]} 5. Bf4 {[%clk 0:02:58.5]}
5... O-O {[%clk 0:02:56]} 6. e3 {[%clk 0:02:58.5]} 6... d6 {[%clk 0:02:56.6]} 7.
h4 {[%clk 0:02:57.7]} 7... Nh5 {[%clk 0:02:56.6]} 8. Bg5 {[%clk 0:02:57.5]} 8...
h6 {[%clk 0:02:56.2]} 9. Bf4 {[%clk 0:02:55.6]} 9... Nc6 {[%clk 0:02:51.5]} 10.
d5 {[%clk 0:02:51.6]} 10... Ne5 {[%clk 0:02:34]} 11. Be2 {[%clk 0:02:44.9]}
11... Nxf4 {[%clk 0:02:32.8]} 12. exf4 {[%clk 0:02:45]} 12... Ng4 {[%clk
0:02:26.2]} 13. O-O {[%clk 0:02:33.3]} 13... e5 {[%clk 0:02:24.1]} 14. dxe6
{[%clk 0:02:31.3]} 14... Bxe6 {[%clk 0:02:23.9]} 15. Nd4 {[%clk 0:02:29.9]}
15... Bxd4 {[%clk 0:02:19.4]} 16. Qxd4 {[%clk 0:02:28.9]} 16... Qxh4 {[%clk
0:02:20.1]} 17. Bxg4 {[%clk 0:02:25.8]} 17... fxg4 {[%clk 0:02:14.5]} 18. g3
{[%clk 0:02:21.8]} 18... Qf6 {[%clk 0:02:14.4]} 19. Qxf6 {[%clk 0:02:14]} 19...
Rxf6 {[%clk 0:02:14.4]} 20. b3 {[%clk 0:02:13.6]} 20... Rff8 {[%clk 0:02:07]}
21. Nb5 {[%clk 0:02:13.1]} 21... Rf7 {[%clk 0:02:03.7]} 22. Rfe1 {[%clk
0:02:11.9]} 22... Bf5 {[%clk 0:02:02.9]} 23. Re3 {[%clk 0:02:06.6]} 23... a6
{[%clk 0:02:03.2]} 24. Nd4 {[%clk 0:02:06.6]} 24... Bd7 {[%clk 0:02:01.2]} 25.
Rae1 {[%clk 0:02:07]} 25... Kf8 {[%clk 0:01:57.9]} 26. Kg2 {[%clk 0:01:51.4]}
26... Kg7 {[%clk 0:01:46.2]} 27. f3 {[%clk 0:01:21.9]} 27... gxf3+ {[%clk
0:01:45.8]} 28. Kxf3 {[%clk 0:01:22.8]} 28... b5 {[%clk 0:01:43.4]} 29. Rc3
{[%clk 0:01:10.6]} 29... c5 {[%clk 0:01:37.2]} 30. Ne6+ {[%clk 0:01:03.3]} 30...
Kf6 {[%clk 0:01:37.2]} 31. Nc7 {[%clk 0:01:01.5]} 31... Bc6+ {[%clk 0:01:36.2]}
32. Kf2 {[%clk 0:00:55.2]} 32... Rxc7 {[%clk 0:01:35.8]} 33. cxb5 {[%clk
0:00:53.2]} 33... axb5 {[%clk 0:01:35.6]} 34. Re2 {[%clk 0:00:49.3]} 34... Re7
{[%clk 0:01:34.6]} 35. Rd2 {[%clk 0:00:49]} 35... Re6 {[%clk 0:01:30]} 36. Rcd3
{[%clk 0:00:48.3]} 36... d5 {[%clk 0:01:29]} 37. Rc3 {[%clk 0:00:47.6]} 37... c4
{[%clk 0:01:29.3]} 38. bxc4 {[%clk 0:00:47.2]} 38... bxc4 {[%clk 0:01:26.7]} 39.
Rb2 {[%clk 0:00:47.2]} 39... Ra4 {[%clk 0:01:15.1]} 40. a3 {[%clk 0:00:45.7]}
40... d4 {[%clk 0:01:15.2]} 41. Rc1 {[%clk 0:00:45.7]} 41... c3 {[%clk
0:01:15.6]} 42. Rb8 {[%clk 0:00:38.3]} 42... Rxa3 {[%clk 0:01:15.8]} 43. Rf8+
{[%clk 0:00:37.5]} 43... Kg7 {[%clk 0:01:15.8]} 44. Rd8 {[%clk 0:00:37.2]} 44...
Ra2+ {[%clk 0:01:15.5]} 45. Kf1 {[%clk 0:00:37.5]} 45... Ree2 {[%clk 0:01:09]}
46. Rxd4 {[%clk 0:00:29.2]} 46... Rh2 {[%clk 0:01:08.8]} 47. Rxc3 {[%clk
0:00:07.8]} 47... Rh1# {[%clk 0:01:07.7]} 0-1

[Event "Early-Titled-Tuesday-Blitz-April-23-2024"]
[Site "Chess.com"]
[Date "2024.04.23"]
[Round "6"]
[White "arenal72"]
[Black "Gryffindorac8"]
[Result "1-0"]
[WhiteElo "2624"]
[BlackElo "2452"]
[TimeControl "180+1"]
[EndTime "9:08:03 PDT"]
[Termination "arenal72 won on time"]

1. Nf3 {[%clk 0:03:00.9]} 1... Nf6 {[%clk 0:02:58.8]} 2. g3 {[%clk 0:03:00.6]}
2... d5 {[%clk 0:02:58]} 3. Bg2 {[%clk 0:03:01]} 3... Bf5 {[%clk 0:02:55.8]} 4.
O-O {[%clk 0:03:01.1]} 4... e6 {[%clk 0:02:55.8]} 5. d3 {[%clk 0:03:01.5]} 5...
h6 {[%clk 0:02:55.9]} 6. c4 {[%clk 0:03:01.3]} 6... c6 {[%clk 0:02:55.7]} 7. Be3
{[%clk 0:03:00]} 7... Be7 {[%clk 0:02:55.3]} 8. Nc3 {[%clk 0:02:59.1]} 8... O-O
{[%clk 0:02:53]} 9. Rc1 {[%clk 0:02:53.3]} 9... Nbd7 {[%clk 0:02:52.4]} 10. Qb3
{[%clk 0:02:50.5]} 10... Qc8 {[%clk 0:01:45]} 11. cxd5 {[%clk 0:02:43.5]} 11...
exd5 {[%clk 0:01:43.6]} 12. Nd4 {[%clk 0:02:41.7]} 12... Nc5 {[%clk 0:01:25.7]}
13. Qa3 {[%clk 0:02:32.6]} 13... Bh3 {[%clk 0:01:19.7]} 14. Nxc6 {[%clk
0:02:18.7]} 14... bxc6 {[%clk 0:01:11.9]} 15. Bxc5 {[%clk 0:02:15.8]} 15... Bxc5
{[%clk 0:01:11.2]} 16. Qxc5 {[%clk 0:02:14.8]} 16... Re8 {[%clk 0:01:05.5]} 17.
e3 {[%clk 0:02:07.8]} 17... h5 {[%clk 0:00:58.5]} 18. Qd4 {[%clk 0:02:03.6]}
18... Qf5 {[%clk 0:00:54]} 19. Ne2 {[%clk 0:02:00.6]} 19... Rac8 {[%clk
0:00:45.1]} 20. Nf4 {[%clk 0:01:43.7]} 20... Bxg2 {[%clk 0:00:45]} 21. Kxg2
{[%clk 0:01:43.2]} 21... h4 {[%clk 0:00:39]} 22. Nh3 {[%clk 0:01:33.4]} 22...
Ng4 {[%clk 0:00:27.2]} 23. Qf4 {[%clk 0:01:25.6]} 23... Qg6 {[%clk 0:00:25]} 24.
d4 {[%clk 0:01:15.4]} 24... Re4 {[%clk 0:00:20.4]} 25. Qf3 {[%clk 0:01:13.2]}
25... Rce8 {[%clk 0:00:17.4]} 26. Nf4 {[%clk 0:01:08.7]} 26... Qg5 {[%clk
0:00:17.4]} 27. Rxc6 {[%clk 0:01:06.1]} 27... hxg3 {[%clk 0:00:13.3]} 28. hxg3
{[%clk 0:01:05.3]} 28... Nh6 {[%clk 0:00:13.5]} 29. Qh5 {[%clk 0:00:58.4]} 29...
Qe7 {[%clk 0:00:10.7]} 30. Nxd5 {[%clk 0:00:51.4]} 30... Qb7 {[%clk 0:00:10.2]}
31. Rxh6 {[%clk 0:00:47.1]} 31... gxh6 {[%clk 0:00:09.6]} 32. Nf6+ {[%clk
0:00:45.7]} 32... Kg7 {[%clk 0:00:07.5]} 33. Nxe4 {[%clk 0:00:44.4]} 33... Qxe4+
{[%clk 0:00:07.2]} 34. Qf3 {[%clk 0:00:44]} 34... Qc2 {[%clk 0:00:06.1]} 35. Qf4
{[%clk 0:00:39.6]} 35... Qxb2 {[%clk 0:00:05.2]} 36. Rh1 {[%clk 0:00:39.6]}
36... Re6 {[%clk 0:00:03.4]} 37. Rh4 {[%clk 0:00:38.6]} 37... Qxa2 {[%clk
0:00:02.6]} 38. Rg4+ {[%clk 0:00:38.4]} 1-0

[Event "Early-Titled-Tuesday-Blitz-April-23-2024"]
[Site "Chess.com"]
[Date "2024.04.23"]
[Round "6"]
[White "Juicy_Fork"]
[Black "Sadykov_Ramil"]
[Result "0-1"]
[WhiteElo "2472"]
[BlackElo "2630"]
[TimeControl "180+1"]
[EndTime "9:08:05 PDT"]
[Termination "Sadykov_Ramil won on time"]

1. e4 {[%clk 0:02:58.3]} 1... d5 {[%clk 0:02:54.2]} 2. exd5 {[%clk 0:02:59.2]}
2... Qxd5 {[%clk 0:02:54.8]} 3. Nc3 {[%clk 0:02:59.1]} 3... Qe5+ {[%clk
0:02:53.4]} 4. Be2 {[%clk 0:02:57.5]} 4... Bg4 {[%clk 0:02:52.8]} 5. d4 {[%clk
0:02:54.2]} 5... Bxe2 {[%clk 0:02:52.4]} 6. Ngxe2 {[%clk 0:02:55.1]} 6... Qa5
{[%clk 0:02:46.5]} 7. b4 {[%clk 0:02:54.3]} 7... Qb6 {[%clk 0:02:44.4]} 8. O-O
{[%clk 0:02:53.7]} 8... Nf6 {[%clk 0:02:43.2]} 9. Bg5 {[%clk 0:02:52.2]} 9...
Nbd7 {[%clk 0:02:41.6]} 10. a4 {[%clk 0:02:49.7]} 10... a5 {[%clk 0:02:21.7]}
11. bxa5 {[%clk 0:02:40.4]} 11... Qxa5 {[%clk 0:02:17.8]} 12. Bxf6 {[%clk
0:02:36]} 12... Nxf6 {[%clk 0:02:13]} 13. Rb1 {[%clk 0:02:35.9]} 13... Qa6
{[%clk 0:01:32.3]} 14. a5 {[%clk 0:02:18.9]} 14... e6 {[%clk 0:01:28.5]} 15. Nf4
{[%clk 0:02:11]} 15... Bd6 {[%clk 0:01:26.1]} 16. Nd3 {[%clk 0:02:09.7]} 16...
Qxa5 {[%clk 0:01:18.4]} 17. Nb5 {[%clk 0:01:46]} 17... Rb8 {[%clk 0:01:08.2]}
18. c4 {[%clk 0:01:38.8]} 18... O-O {[%clk 0:00:51.5]} 19. Qb3 {[%clk
0:01:22.3]} 19... Rfd8 {[%clk 0:00:32]} 20. c5 {[%clk 0:01:04.2]} 20... Be7
{[%clk 0:00:28.5]} 21. Nf4 {[%clk 0:00:42]} 21... c6 {[%clk 0:00:22.1]} 22. Nc3
{[%clk 0:00:11.1]} 22... Rxd4 {[%clk 0:00:21]} 23. Nfe2 {[%clk 0:00:05.2]} 23...
Rdd8 {[%clk 0:00:16.6]} 24. Ra1 {[%clk 0:00:03.1]} 24... Qxc5 {[%clk 0:00:16.2]}
25. Rfc1 {[%clk 0:00:02.2]} 25... Qe5 {[%clk 0:00:14.4]} 26. g3 {[%clk
0:00:01.4]} 26... Nd5 {[%clk 0:00:13.9]} 0-1

[Event "Early-Titled-Tuesday-Blitz-April-23-2024"]
[Site "Chess.com"]
[Date "2024.04.23"]
[Round "6"]
[White "Hope_6"]
[Black "KetiTsatsalashvili"]
[Result "0-1"]
[WhiteElo "2649"]
[BlackElo "2426"]
[TimeControl "180+1"]
[EndTime "9:08:08 PDT"]
[Termination "KetiTsatsalashvili won on time"]

1. d4 {[%clk 0:03:00.9]} 1... Nf6 {[%clk 0:02:59.7]} 2. c4 {[%clk 0:02:58.5]}
2... e6 {[%clk 0:02:58.7]} 3. Nf3 {[%clk 0:02:55.4]} 3... b6 {[%clk 0:02:52.8]}
4. a3 {[%clk 0:02:53.6]} 4... Bb7 {[%clk 0:02:48.3]} 5. Nc3 {[%clk 0:02:53.5]}
5... d5 {[%clk 0:02:43.5]} 6. cxd5 {[%clk 0:02:52.6]} 6... exd5 {[%clk
0:02:43.6]} 7. Qc2 {[%clk 0:02:52]} 7... h6 {[%clk 0:02:43.1]} 8. Bf4 {[%clk
0:02:51.4]} 8... c6 {[%clk 0:02:40.2]} 9. e3 {[%clk 0:02:51.2]} 9... Bd6 {[%clk
0:02:40.4]} 10. Ne5 {[%clk 0:02:50.7]} 10... O-O {[%clk 0:02:39.6]} 11. Bd3
{[%clk 0:02:48.8]} 11... Nh5 {[%clk 0:02:34.1]} 12. O-O {[%clk 0:02:42.3]} 12...
Nxf4 {[%clk 0:02:28.7]} 13. exf4 {[%clk 0:02:43.2]} 13... Nd7 {[%clk 0:02:28.4]}
14. Rae1 {[%clk 0:02:30]} 14... Nf6 {[%clk 0:02:27.9]} 15. Re3 {[%clk
0:02:26.4]} 15... Rc8 {[%clk 0:02:23.9]} 16. Rfe1 {[%clk 0:02:13.6]} 16... c5
{[%clk 0:02:22.2]} 17. dxc5 {[%clk 0:01:49.2]} 17... Bxc5 {[%clk 0:02:19.5]} 18.
Rg3 {[%clk 0:01:45.5]} 18... d4 {[%clk 0:02:13.9]} 19. Na4 {[%clk 0:01:37.2]}
19... Bb4 {[%clk 0:02:06.4]} 20. Qe2 {[%clk 0:01:25.4]} 20... Bxe1 {[%clk
0:02:05.5]} 21. Qxe1 {[%clk 0:01:25.8]} 21... Qe8 {[%clk 0:01:49.7]} 22. b3
{[%clk 0:01:15.1]} 22... Nh5 {[%clk 0:01:37.3]} 23. Rg4 {[%clk 0:01:06.7]} 23...
b5 {[%clk 0:01:04.7]} 24. Nb2 {[%clk 0:01:03]} 24... Nf6 {[%clk 0:00:39.4]} 25.
Rh4 {[%clk 0:00:57.5]} 25... Rc3 {[%clk 0:00:37.3]} 26. f3 {[%clk 0:00:47.3]}
26... Qc8 {[%clk 0:00:37]} 27. Nd1 {[%clk 0:00:36.1]} 27... Rc1 {[%clk
0:00:34.8]} 28. h3 {[%clk 0:00:25.1]} 28... Nd5 {[%clk 0:00:32.5]} 29. Kh2
{[%clk 0:00:23.9]} 29... Ne3 {[%clk 0:00:29.7]} 30. Qg3 {[%clk 0:00:20.6]} 30...
Rxd1 {[%clk 0:00:29.4]} 31. Be2 {[%clk 0:00:17.5]} 31... Qc1 {[%clk 0:00:23.3]}
32. Bxd1 {[%clk 0:00:15.6]} 32... Nf1+ {[%clk 0:00:23.2]} 0-1

[Event "Early-Titled-Tuesday-Blitz-April-23-2024"]
[Site "Chess.com"]
[Date "2024.04.23"]
[Round "6"]
[White "samidescalona2002"]
[Black "ChadBiryani"]
[Result "1-0"]
[WhiteElo "2727"]
[BlackElo "2443"]
[TimeControl "180+1"]
[EndTime "9:08:10 PDT"]
[Termination "samidescalona2002 won by resignation"]

1. d4 {[%clk 0:03:00.9]} 1... Nf6 {[%clk 0:02:58.4]} 2. c4 {[%clk 0:03:00.2]}
2... e5 {[%clk 0:02:58.5]} 3. dxe5 {[%clk 0:02:57.7]} 3... Ng4 {[%clk
0:02:58.6]} 4. Nf3 {[%clk 0:02:56.7]} 4... Bc5 {[%clk 0:02:57.2]} 5. e3 {[%clk
0:02:54.8]} 5... Nc6 {[%clk 0:02:57.6]} 6. Be2 {[%clk 0:02:54.2]} 6... O-O
{[%clk 0:02:57.1]} 7. Nc3 {[%clk 0:02:53.8]} 7... Re8 {[%clk 0:02:57.1]} 8. O-O
{[%clk 0:02:48.4]} 8... a5 {[%clk 0:02:57.5]} 9. b3 {[%clk 0:02:47.8]} 9...
Ngxe5 {[%clk 0:02:54.8]} 10. Bb2 {[%clk 0:02:46.1]} 10... Nxf3+ {[%clk
0:02:53.6]} 11. Bxf3 {[%clk 0:02:45.9]} 11... Ne5 {[%clk 0:02:53.7]} 12. Be2
{[%clk 0:02:39.5]} 12... Ra6 {[%clk 0:02:53.1]} 13. Nd5 {[%clk 0:02:34.9]} 13...
Rh6 {[%clk 0:02:50.8]} 14. g3 {[%clk 0:02:24.6]} 14... d6 {[%clk 0:02:47.4]} 15.
Bxe5 {[%clk 0:01:40.5]} 15... Rxe5 {[%clk 0:02:41.1]} 16. Bg4 {[%clk 0:01:40.3]}
16... Rg5 {[%clk 0:02:21.7]} 17. Bxc8 {[%clk 0:01:36.4]} 17... c6 {[%clk
0:02:22.1]} 18. Bxb7 {[%clk 0:01:20.4]} 18... cxd5 {[%clk 0:02:20.8]} 19. Bxd5
{[%clk 0:01:19.6]} 19... Rgh5 {[%clk 0:02:20.9]} 20. h4 {[%clk 0:01:03.7]} 20...
Rxh4 {[%clk 0:00:38.6]} 21. gxh4 {[%clk 0:00:26.7]} 21... Qxh4 {[%clk
0:00:38.5]} 22. Re1 {[%clk 0:00:26.9]} 22... Rf6 {[%clk 0:00:38.6]} 23. Bf3
{[%clk 0:00:19]} 23... Qh3 {[%clk 0:00:29.9]} 24. Qd5 {[%clk 0:00:15.9]} 24...
h6 {[%clk 0:00:22.4]} 25. Bg2 {[%clk 0:00:12.2]} 25... Qh4 {[%clk 0:00:22.1]}
26. Qa8+ {[%clk 0:00:11.7]} 26... Kh7 {[%clk 0:00:22.2]} 27. Qe4+ {[%clk
0:00:12.4]} 27... Qxe4 {[%clk 0:00:21.2]} 28. Bxe4+ {[%clk 0:00:13.3]} 28... g6
{[%clk 0:00:21.7]} 29. Rad1 {[%clk 0:00:12.4]} 29... Re6 {[%clk 0:00:21.4]} 30.
Bd5 {[%clk 0:00:12.3]} 30... Re5 {[%clk 0:00:21.9]} 31. Kg2 {[%clk 0:00:13.2]}
31... f5 {[%clk 0:00:21.8]} 32. f4 {[%clk 0:00:12.8]} 32... Re7 {[%clk
0:00:22.1]} 33. e4 {[%clk 0:00:12.3]} 33... fxe4 {[%clk 0:00:20.6]} 34. Rxe4
{[%clk 0:00:13.2]} 34... Ra7 {[%clk 0:00:18.8]} 35. Rde1 {[%clk 0:00:13.4]}
35... g5 {[%clk 0:00:18.2]} 36. f5 {[%clk 0:00:12.5]} 36... Kg7 {[%clk
0:00:17.4]} 37. Re6 {[%clk 0:00:12.6]} 37... Re7 {[%clk 0:00:18.1]} 38. Rxe7+
{[%clk 0:00:12.6]} 1-0

[Event "Early-Titled-Tuesday-Blitz-April-23-2024"]
[Site "Chess.com"]
[Date "2024.04.23"]
[Round "6"]
[White "Kirill_Klukin"]
[Black "Timerkhanov"]
[Result "1-0"]
[WhiteElo "2836"]
[BlackElo "2640"]
[TimeControl "180+1"]
[EndTime "9:08:14 PDT"]
[Termination "Kirill_Klukin won by resignation"]

1. d4 {[%clk 0:03:00.9]} 1... d5 {[%clk 0:02:59.6]} 2. c4 {[%clk 0:03:01.1]}
2... c6 {[%clk 0:02:59.9]} 3. Nf3 {[%clk 0:02:59.8]} 3... Nf6 {[%clk 0:03:00.4]}
4. Nc3 {[%clk 0:02:59.7]} 4... dxc4 {[%clk 0:03:00]} 5. e3 {[%clk 0:03:00.4]}
5... Be6 {[%clk 0:02:57.8]} 6. Ng5 {[%clk 0:02:57.7]} 6... Qc8 {[%clk
0:02:55.6]} 7. Nxe6 {[%clk 0:02:50.9]} 7... Qxe6 {[%clk 0:02:55.3]} 8. a4 {[%clk
0:02:51.2]} 8... a5 {[%clk 0:02:50.3]} 9. Qe2 {[%clk 0:02:50.2]} 9... Na6 {[%clk
0:02:50]} 10. Qxc4 {[%clk 0:02:50.2]} 10... Qxc4 {[%clk 0:02:50.9]} 11. Bxc4
{[%clk 0:02:50.9]} 11... Nb4 {[%clk 0:02:51.5]} 12. Ke2 {[%clk 0:02:48.5]} 12...
e6 {[%clk 0:02:51.9]} 13. Bd2 {[%clk 0:02:44]} 13... Be7 {[%clk 0:02:51.1]} 14.
Na2 {[%clk 0:02:34.7]} 14... O-O {[%clk 0:02:43.7]} 15. Nxb4 {[%clk 0:02:34]}
15... axb4 {[%clk 0:02:44]} 16. a5 {[%clk 0:02:31.4]} 16... Ne4 {[%clk
0:02:38.5]} 17. Be1 {[%clk 0:02:12.2]} 17... b6 {[%clk 0:01:44.5]} 18. a6 {[%clk
0:02:07.3]} 18... b5 {[%clk 0:01:42.8]} 19. Bd3 {[%clk 0:02:07.2]} 19... Nf6
{[%clk 0:01:42.9]} 20. Bd2 {[%clk 0:02:05.7]} 20... Rfb8 {[%clk 0:01:28.9]} 21.
Rhc1 {[%clk 0:02:01]} 21... Rb6 {[%clk 0:01:29]} 22. a7 {[%clk 0:02:01.5]} 22...
Kf8 {[%clk 0:01:20.4]} 23. e4 {[%clk 0:02:01.2]} 23... Ke8 {[%clk 0:01:13.2]}
24. Bf4 {[%clk 0:01:58.4]} 24... Kd7 {[%clk 0:01:11.4]} 25. h3 {[%clk
0:01:38.6]} 25... Ne8 {[%clk 0:01:10.2]} 26. d5 {[%clk 0:01:35.6]} 26... exd5
{[%clk 0:01:06.7]} 27. exd5 {[%clk 0:01:35.3]} 27... cxd5 {[%clk 0:00:59.1]} 28.
Bf5+ {[%clk 0:01:27]} 28... Re6+ {[%clk 0:00:51.3]} 29. Kd3 {[%clk 0:01:23.6]}
29... Bd6 {[%clk 0:00:49.8]} 30. Be3 {[%clk 0:01:18.5]} 30... Be5 {[%clk
0:00:43.9]} 31. Ra5 {[%clk 0:01:03]} 31... Nc7 {[%clk 0:00:42.8]} 32. Bb6 {[%clk
0:00:58.6]} 32... g6 {[%clk 0:00:24.6]} 33. Bxe6+ {[%clk 0:00:40.2]} 33... Nxe6
{[%clk 0:00:25.5]} 34. Rxb5 {[%clk 0:00:34.5]} 34... Bxb2 {[%clk 0:00:26]} 35.
Rc2 {[%clk 0:00:22.3]} 35... Bc3 {[%clk 0:00:21.2]} 36. g3 {[%clk 0:00:18.6]}
36... Kc6 {[%clk 0:00:21.6]} 37. Rxb4 {[%clk 0:00:18.9]} 37... d4 {[%clk
0:00:15.9]} 38. Bxd4 {[%clk 0:00:17.8]} 1-0

[Event "Early-Titled-Tuesday-Blitz-April-23-2024"]
[Site "Chess.com"]
[Date "2024.04.23"]
[Round "6"]
[White "WindWhistler11"]
[Black "Lupul_Cenusiu"]
[Result "0-1"]
[WhiteElo "2522"]
[BlackElo "2681"]
[TimeControl "180+1"]
[EndTime "9:08:15 PDT"]
[Termination "Lupul_Cenusiu won on time"]

1. Nf3 {[%clk 0:03:00.9]} 1... Nf6 {[%clk 0:02:59.9]} 2. g3 {[%clk 0:03:00.9]}
2... g6 {[%clk 0:02:59.8]} 3. Bg2 {[%clk 0:03:01.6]} 3... c5 {[%clk 0:03:00.4]}
4. O-O {[%clk 0:03:01.4]} 4... Bg7 {[%clk 0:03:01.1]} 5. a3 {[%clk 0:02:58.7]}
5... O-O {[%clk 0:03:01.2]} 6. b4 {[%clk 0:02:59.1]} 6... Ne4 {[%clk 0:02:57.6]}
7. c3 {[%clk 0:02:58.4]} 7... d5 {[%clk 0:02:52.3]} 8. Qc2 {[%clk 0:02:51.2]}
8... b6 {[%clk 0:02:35.9]} 9. d3 {[%clk 0:02:50.6]} 9... Nd6 {[%clk 0:02:36.1]}
10. Bb2 {[%clk 0:02:27.4]} 10... Bb7 {[%clk 0:02:28.6]} 11. Nbd2 {[%clk
0:02:25.1]} 11... e5 {[%clk 0:01:58.3]} 12. e4 {[%clk 0:02:15]} 12... dxe4
{[%clk 0:01:52.2]} 13. Nxe4 {[%clk 0:02:01]} 13... Nxe4 {[%clk 0:01:47]} 14.
dxe4 {[%clk 0:02:00.7]} 14... c4 {[%clk 0:01:47.7]} 15. a4 {[%clk 0:01:52.7]}
15... Nd7 {[%clk 0:01:43.1]} 16. Rfd1 {[%clk 0:01:42.7]} 16... Qc7 {[%clk
0:01:43.1]} 17. Qe2 {[%clk 0:01:40.7]} 17... Nf6 {[%clk 0:01:37.1]} 18. Nd2
{[%clk 0:01:36.9]} 18... Rac8 {[%clk 0:01:37.7]} 19. Bf1 {[%clk 0:01:25.7]}
19... Rfd8 {[%clk 0:01:25.5]} 20. f3 {[%clk 0:01:20.9]} 20... b5 {[%clk
0:01:10]} 21. axb5 {[%clk 0:01:19.2]} 21... Qb6+ {[%clk 0:01:10.2]} 22. Qf2
{[%clk 0:01:00.6]} 22... Qxb5 {[%clk 0:00:59.5]} 23. Nxc4 {[%clk 0:00:51.2]}
23... Rxd1 {[%clk 0:00:56.3]} 24. Rxd1 {[%clk 0:00:51.4]} 24... Rxc4 {[%clk
0:00:50.6]} 25. Rd8+ {[%clk 0:00:47]} 25... Bf8 {[%clk 0:00:46.4]} 26. Bxc4
{[%clk 0:00:16.5]} 26... Qxc4 {[%clk 0:00:47.3]} 27. Qc5 {[%clk 0:00:13]} 27...
Qxc5+ {[%clk 0:00:37]} 28. bxc5 {[%clk 0:00:13.4]} 28... Kg7 {[%clk 0:00:37.7]}
29. Ba3 {[%clk 0:00:13.6]} 29... Be7 {[%clk 0:00:21.9]} 30. Rb8 {[%clk
0:00:10.9]} 30... Bc6 {[%clk 0:00:22.3]} 31. Rc8 {[%clk 0:00:10.4]} 31... Bd7
{[%clk 0:00:18.2]} 32. Rc7 {[%clk 0:00:09.8]} 32... a5 {[%clk 0:00:15.7]} 0-1

[Event "Early-Titled-Tuesday-Blitz-April-23-2024"]
[Site "Chess.com"]
[Date "2024.04.23"]
[Round "6"]
[White "stepanosinovsky"]
[Black "TacticalSam94"]
[Result "1-0"]
[WhiteElo "2382"]
[BlackElo "2198"]
[TimeControl "180+1"]
[EndTime "9:08:22 PDT"]
[Termination "stepanosinovsky won by checkmate"]

1. e4 {[%clk 0:03:00.9]} 1... c5 {[%clk 0:02:58.8]} 2. Nf3 {[%clk 0:03:00.9]}
2... d6 {[%clk 0:02:59.3]} 3. d4 {[%clk 0:03:00.7]} 3... cxd4 {[%clk 0:03:00.2]}
4. Qxd4 {[%clk 0:03:00.7]} 4... a6 {[%clk 0:02:57.9]} 5. c4 {[%clk 0:02:59.1]}
5... Nf6 {[%clk 0:02:57]} 6. Nc3 {[%clk 0:02:57.8]} 6... e6 {[%clk 0:02:57.4]}
7. Be2 {[%clk 0:02:56.1]} 7... Be7 {[%clk 0:02:57.2]} 8. O-O {[%clk 0:02:55.5]}
8... Nc6 {[%clk 0:02:56.9]} 9. Qd2 {[%clk 0:02:53.7]} 9... O-O {[%clk
0:02:56.7]} 10. Rd1 {[%clk 0:02:53.9]} 10... Qc7 {[%clk 0:02:48.5]} 11. b3
{[%clk 0:02:53.7]} 11... b6 {[%clk 0:02:48.1]} 12. Bb2 {[%clk 0:02:53.7]} 12...
Bb7 {[%clk 0:02:48.4]} 13. Rac1 {[%clk 0:02:54.3]} 13... Rad8 {[%clk 0:02:45.5]}
14. Nd5 {[%clk 0:02:52]} 14... exd5 {[%clk 0:02:40.8]} 15. cxd5 {[%clk
0:02:50.6]} 15... Qd7 {[%clk 0:02:41.3]} 16. dxc6 {[%clk 0:02:49.1]} 16... Bxc6
{[%clk 0:02:42.2]} 17. e5 {[%clk 0:01:50.2]} 17... dxe5 {[%clk 0:02:27.4]} 18.
Qxd7 {[%clk 0:01:47]} 18... Bxd7 {[%clk 0:02:26.8]} 19. Nxe5 {[%clk 0:01:46.6]}
19... Bb5 {[%clk 0:02:17.6]} 20. Bxb5 {[%clk 0:01:44.8]} 20... axb5 {[%clk
0:02:18.5]} 21. Nc6 {[%clk 0:01:23.5]} 21... Rxd1+ {[%clk 0:02:18.3]} 22. Rxd1
{[%clk 0:01:22]} 22... Re8 {[%clk 0:02:00.7]} 23. Nxe7+ {[%clk 0:01:00.6]} 23...
Rxe7 {[%clk 0:02:00.7]} 24. Rd8+ {[%clk 0:01:01.3]} 24... Ne8 {[%clk 0:01:51.6]}
25. Kf1 {[%clk 0:01:01.5]} 25... f6 {[%clk 0:01:46.9]} 26. Bd4 {[%clk
0:01:00.2]} 26... Kf7 {[%clk 0:01:44.4]} 27. Bxb6 {[%clk 0:00:52.3]} 27... Rb7
{[%clk 0:01:41.7]} 28. Be3 {[%clk 0:00:48.4]} 28... Rc7 {[%clk 0:01:39.6]} 29.
Ke2 {[%clk 0:00:34.1]} 29... Rc2+ {[%clk 0:01:39.5]} 30. Rd2 {[%clk 0:00:34.5]}
30... Rxd2+ {[%clk 0:01:36.7]} 31. Kxd2 {[%clk 0:00:35.4]} 31... Ke6 {[%clk
0:01:37.4]} 32. Kc3 {[%clk 0:00:35.5]} 32... Kd5 {[%clk 0:01:38.1]} 33. Kb4
{[%clk 0:00:33.6]} 33... Kc6 {[%clk 0:01:38.7]} 34. a4 {[%clk 0:00:27.4]} 34...
bxa4 {[%clk 0:01:39.6]} 35. bxa4 {[%clk 0:00:27]} 35... Nd6 {[%clk 0:01:40.5]}
36. a5 {[%clk 0:00:25.8]} 36... Nf5 {[%clk 0:01:36]} 37. g4 {[%clk 0:00:21.4]}
37... Ne7 {[%clk 0:01:31]} 38. Kc4 {[%clk 0:00:19.8]} 38... Nc8 {[%clk
0:01:27.9]} 39. a6 {[%clk 0:00:19.5]} 39... Nd6+ {[%clk 0:01:26.1]} 40. Kd4
{[%clk 0:00:19.7]} 40... Nf7 {[%clk 0:01:18.9]} 41. Ke4 {[%clk 0:00:16.2]} 41...
Nd6+ {[%clk 0:01:12.7]} 42. Kf4 {[%clk 0:00:15.1]} 42... g5+ {[%clk 0:01:12.8]}
43. Kf3 {[%clk 0:00:14.4]} 43... h6 {[%clk 0:01:12.1]} 44. a7 {[%clk 0:00:14.1]}
44... Kb7 {[%clk 0:01:11.9]} 45. Bc5 {[%clk 0:00:14.2]} 45... f5 {[%clk
0:01:12.4]} 46. Bxd6 {[%clk 0:00:14]} 46... f4 {[%clk 0:01:13.1]} 47. Bf8 {[%clk
0:00:13.5]} 47... Kxa7 {[%clk 0:01:12.7]} 48. Bxh6 {[%clk 0:00:14]} 48... Kb7
{[%clk 0:01:13.6]} 49. Bxg5 {[%clk 0:00:14.3]} 49... Kc6 {[%clk 0:01:14.5]} 50.
Bxf4 {[%clk 0:00:14.5]} 50... Kd5 {[%clk 0:01:15.4]} 51. h4 {[%clk 0:00:14.8]}
51... Ke6 {[%clk 0:01:16.3]} 52. h5 {[%clk 0:00:15.3]} 52... Kf7 {[%clk
0:01:17.2]} 53. Be5 {[%clk 0:00:15.1]} 53... Kg8 {[%clk 0:01:17.2]} 54. Ke4
{[%clk 0:00:15.6]} 54... Kh7 {[%clk 0:01:18.1]} 55. f4 {[%clk 0:00:16.2]} 55...
Kh6 {[%clk 0:01:18.8]} 56. f5 {[%clk 0:00:16.3]} 56... Kg5 {[%clk 0:01:19.1]}
57. Kf3 {[%clk 0:00:16.4]} 57... Kh6 {[%clk 0:01:19.3]} 58. Bf4+ {[%clk
0:00:16.5]} 58... Kg7 {[%clk 0:01:19.4]} 59. g5 {[%clk 0:00:16.9]} 59... Kh7
{[%clk 0:01:20.3]} 60. Be5 {[%clk 0:00:16.8]} 60... Kg8 {[%clk 0:01:21.2]} 61.
g6 {[%clk 0:00:16]} 61... Kf8 {[%clk 0:01:21.1]} 62. h6 {[%clk 0:00:14.4]} 62...
Kg8 {[%clk 0:01:20.7]} 63. h7+ {[%clk 0:00:13]} 63... Kf8 {[%clk 0:01:21.3]} 64.
h8=Q+ {[%clk 0:00:13.4]} 64... Ke7 {[%clk 0:01:21.7]} 65. Qf6+ {[%clk
0:00:13.7]} 65... Kd7 {[%clk 0:01:22.6]} 66. Qd6+ {[%clk 0:00:14]} 66... Kc8
{[%clk 0:01:22.9]} 67. Qc7# {[%clk 0:00:14.2]} 1-0